bitfinex/quotes_BTCUSD_20250928
["timestamp","ask_amount","ask_price","bid_price","bid_amount"]
[1759067689419,8.50798972,109910.0,109900.0,10.31989]
[1759067690164,8.49371297,109910.0,109900.0,10.31989]
[1759067690564,8.49371297,109910.0,109900.0,10.31589]
[1759067690749,8.49371297,109910.0,109900.0,10.31989]
[1759067691199,8.49371297,109910.0,109900.0,10.32389]
[1759067692942,8.50798995,109910.0,109900.0,10.32389]
[1759067693970,8.22322995,109910.0,109900.0,10.32389]
[1759067694302,8.50794995,109910.0,109900.0,10.32389]
[1759067694506,8.22322995,109910.0,109900.0,10.32389]
[1759067694931,8.50794995,109910.0,109900.0,10.32389]
[1759067695131,8.50727412,109910.0,109900.0,10.32389]
[1759067697463,8.50727412,109910.0,109900.0,10.31689]
[1759067697805,8.50727412,109910.0,109900.0,10.32689]
[1759067698020,8.50727412,109910.0,109900.0,10.32289]
[1759067698582,8.50727412,109910.0,109900.0,10.32889]
[1759067699439,8.04058706,109910.0,109900.0,10.32889]
[1759067699773,8.01320227,109910.0,109900.0,10.32889]
[1759067699923,8.01320227,109910.0,109900.0,10.35627332]
[1759067700133,7.99892529,109910.0,109900.0,10.35627332]
[1759067703368,8.01320178,109910.0,109900.0,10.35627332]
[1759067703583,0.01427649,109910.0,109900.0,10.35627332]
[1759067704421,0.01427649,109910.0,109900.0,10.34627332]
[1759067704835,0.01427649,109910.0,109900.0,10.35927332]
[1759067705585,0.34,109920.0,109900.0,10.07451332]
[1759067705791,8.01427655,109910.0,109900.0,10.07133332]
[1759067706002,0.01427655,109910.0,109900.0,10.0741019]
[1759067706499,0.01427655,109910.0,109900.0,10.10460235]
[1759067706718,0.01427655,109910.0,109900.0,10.37628235]
[1759067707100,0.01427655,109910.0,109900.0,10.37028235]
[1759067707313,0.01427655,109910.0,109900.0,10.38028235]
[1759067707521,0.01427655,109910.0,109900.0,10.38828235]
[1759067707739,0.01427655,109910.0,109900.0,10.37828235]
[1759067708201,0.57227263,109930.0,109900.0,10.39128235]
[1759067708417,8.0,109920.0,109910.0,0.3059967]
[1759067708641,8.0,109920.0,109910.0,0.31244]
[1759067708854,8.0,109920.0,109910.0,0.33981995]
[1759067710997,8.0,109920.0,109910.0,0.35281995]
[1759067712150,8.0,109920.0,109910.0,0.06813995]
[1759067712548,8.0,109920.0,109910.0,0.37101665]
[1759067712739,8.0,109920.0,109910.0,0.35281995]
[1759067712952,8.0,109920.0,109910.0,0.06813995]
[1759067713162,8.0,109920.0,109910.0,0.37097665]
[1759067713387,8.0,109920.0,109910.0,0.35277995]
[1759067713700,8.0,109920.0,109910.0,0.06813995]
[1759067713954,8.0,109920.0,109910.0,0.35277995]
[1759067715801,8.0,109920.0,109910.0,0.36177995]
[1759067717737,8.0,109920.0,109910.0,0.07713995]
[1759067718096,8.0,109920.0,109910.0,0.36177995]
[1759067720056,8.0,109920.0,109910.0,0.07713995]
[1759067720239,8.0,109920.0,109910.0,0.36177995]
[1759067720986,0.0268446,109930.0,109910.0,0.36177995]
[1759067721201,0.01256913,109930.0,109920.0,0.02126505]
[1759067721483,0.01256913,109930.0,109920.0,0.02327505]
[1759067721670,0.0002,109950.0,109920.0,0.04648505]
[1759067721886,0.0002,109950.0,109930.0,0.00307]
[1759067722113,0.0002,109950.0,109940.0,0.29228]
[1759067722334,0.5002,109950.0,109940.0,0.29228]
[1759067722549,0.35213629,109950.0,109940.0,0.31561]
[1759067722809,0.35213629,109950.0,109940.0,0.02522]
[1759067723027,0.35213629,109950.0,109940.0,0.02829]
[1759067723253,0.35222076,109950.0,109940.0,0.31758]
[1759067723494,0.35222076,109950.0,109940.0,0.32065]
[1759067724032,8.35222076,109950.0,109940.0,0.33257]
[1759067724252,8.35222076,109950.0,109940.0,0.04021]
[1759067724459,8.53412162,109950.0,109940.0,0.04021]
[1759067724645,8.35222076,109950.0,109940.0,0.04021]
[1759067725042,8.53412162,109950.0,109940.0,0.04021]
[1759067725451,8.53412162,109950.0,109940.0,0.03021]
[1759067726013,8.53412162,109950.0,109940.0,0.03821]
[1759067726229,8.53412162,109950.0,109940.0,0.03121]
[1759067726441,8.53412162,109950.0,109940.0,0.02321]
[1759067726672,8.53412162,109950.0,109940.0,0.02821]
[1759067726894,8.53412162,109950.0,109940.0,0.03321]
[1759067727082,8.82648162,109950.0,109940.0,0.02821]
[1759067727281,8.82648162,109950.0,109940.0,0.03121]
[1759067728168,8.82648162,109950.0,109940.0,0.02821]
[1759067729003,8.82648162,109950.0,109940.0,0.02321]
[1759067729441,8.82648162,109950.0,109940.0,0.03121]
[1759067729682,8.35222076,109950.0,109940.0,0.03621]
[1759067729909,8.35222076,109950.0,109940.0,0.03329]
[1759067730399,8.35222076,109950.0,109940.0,0.04129]
[1759067730623,0.01222076,109950.0,109940.0,0.04129]
[1759067730838,0.51222076,109950.0,109940.0,0.03329]
[1759067731057,8.01222076,109950.0,109940.0,0.02321]
[1759067731267,8.01222076,109950.0,109940.0,0.03321]
[1759067731482,8.53412162,109950.0,109940.0,0.03321]
[1759067731705,8.53412162,109950.0,109940.0,0.04021]
[1759067731913,8.84311486,109950.0,109940.0,0.04021]
[1759067732097,8.87049408,109950.0,109940.0,0.04021]
[1759067732549,8.57577408,109950.0,109940.0,0.04021]
[1759067732974,8.87045408,109950.0,109940.0,0.04021]
[1759067734239,8.57577408,109950.0,109940.0,0.04021]
[1759067734850,8.87025408,109950.0,109940.0,0.04021]
[1759067737641,8.85598084,109950.0,109940.0,0.04021]
[1759067737887,8.85598084,109950.0,109940.0,0.02321]
[1759067738318,8.85598084,109950.0,109940.0,0.02421]
[1759067738938,8.85598084,109950.0,109940.0,0.02321]
[1759067739196,8.85598084,109950.0,109940.0,0.02821]
[1759067740071,9.02484421,109950.0,109940.0,0.02821]
[1759067740930,9.0391195,109950.0,109940.0,0.02821]
[1759067741145,9.0391195,109950.0,109940.0,0.03121]
[1759067741351,9.0391195,109950.0,109940.0,0.02821]
[1759067741561,9.1338795,109950.0,109940.0,0.02821]
[1759067742408,8.7446395,109950.0,109940.0,0.02821]
[1759067742621,9.1338795,109950.0,109940.0,0.02321]
[1759067742969,8.7446395,109950.0,109940.0,0.02321]
[1759067743192,9.1337595,109950.0,109940.0,0.02321]
[1759067743400,9.0389195,109950.0,109940.0,0.02321]
[1759067743619,9.1337595,109950.0,109940.0,0.02321]
[1759067744745,8.7446395,109950.0,109940.0,0.02321]
[1759067744934,9.1337195,109950.0,109940.0,0.02321]
[1759067745576,8.7446395,109950.0,109940.0,0.02321]
[1759067745819,9.1335995,109950.0,109940.0,0.02321]
[1759067747076,8.65592803,109950.0,109940.0,0.02522]
[1759067747321,8.57577613,109950.0,109940.0,0.02829]
[1759067747562,8.53673613,109950.0,109940.0,0.02829]
[1759067747768,8.52246084,109950.0,109940.0,0.02829]
[1759067747989,8.86246084,109950.0,109940.0,0.02829]
[1759067748219,8.52246084,109950.0,109940.0,0.02829]
[1759067748426,8.86246084,109950.0,109940.0,0.02829]
[1759067748815,8.86246084,109950.0,109940.0,0.03329]
[1759067749288,8.86246084,109950.0,109940.0,0.04129]
[1759067749837,8.86246084,109950.0,109940.0,0.03621]
[1759067751113,8.87673501,109950.0,109940.0,0.03621]
[1759067752137,8.57577501,109950.0,109940.0,0.03621]
[1759067752344,8.87641501,109950.0,109940.0,0.03621]
[1759067752715,9.32521501,109950.0,109940.0,0.03621]
[1759067753288,9.32497501,109950.0,109940.0,0.03621]
[1759067754722,8.87617501,109950.0,109940.0,0.03621]
[1759067755290,8.87585501,109950.0,109940.0,0.03836]
[1759067755498,8.54839579,109950.0,109940.0,0.04137]
[1759067755940,8.36649493,109950.0,109940.0,0.04137]
[1759067756138,0.02649493,109950.0,109940.0,0.04137]
[1759067756345,0.02649493,109950.0,109940.0,0.03337]
[1759067756773,0.02649493,109950.0,109940.0,0.02837]
[1759067757012,0.01222076,109950.0,109940.0,0.02837]
[1759067757204,0.01222076,109950.0,109940.0,0.03537]
[1759067757376,0.01222076,109950.0,109940.0,0.05356174]
[1759067757575,0.01222076,109950.0,109940.0,0.03537]
[1759067757803,0.01222076,109950.0,109940.0,0.04537]
[1759067758006,0.01222076,109950.0,109940.0,0.07274292]
[1759067759390,8.01222076,109950.0,109940.0,0.04537]
[1759067761234,8.02649308,109950.0,109940.0,0.04537]
[1759067763432,8.20839394,109950.0,109940.0,0.04537]
[1759067763863,8.02649308,109950.0,109940.0,0.04537]
[1759067764924,8.20839394,109950.0,109940.0,0.04537]
[1759067765764,8.01705048,109950.0,109940.0,0.04537]
[1759067766004,0.19617318,109950.0,109940.0,0.04537]
[1759067766154,8.20804336,109950.0,109940.0,0.04537]
[1759067768753,8.01187018,109950.0,109940.0,0.04537]
[1759067768986,8.19377104,109950.0,109940.0,0.04537]
[1759067771536,8.19377104,109950.0,109940.0,0.04236]
[1759067771739,8.19377104,109950.0,109940.0,0.0456]
[1759067771943,8.20804372,109950.0,109940.0,0.04236]
[1759067772063,8.51064372,109950.0,109940.0,0.04236]
[1759067772707,8.51064372,109950.0,109940.0,0.0456]
[1759067773566,0.02614286,109950.0,109940.0,0.0456]
[1759067773797,0.02289286,109950.0,109940.0,0.0456]
[1759067774680,0.02289286,109950.0,109940.0,0.0386]
[1759067774897,0.02289286,109950.0,109940.0,0.0286]
[1759067775106,0.02289286,109950.0,109940.0,0.0506]
[1759067775536,0.02289286,109950.0,109940.0,0.0416]
[1759067775953,0.02289286,109950.0,109940.0,0.0536]
[1759067776170,0.3402,109990.0,109940.0,0.0536]
[1759067776407,8.0,109980.0,109950.0,0.3184]
[1759067776623,8.0,109980.0,109970.0,0.00211]
[1759067777076,8.0,109980.0,109970.0,0.03026]
[1759067777495,8.34,109980.0,109970.0,0.03026]
[1759067777729,8.34198,109980.0,109970.0,0.02702]
[1759067778182,8.53850057,109980.0,109970.0,0.02491]
[1759067778856,8.53850057,109980.0,109970.0,0.04691]
[1759067779275,8.53850057,109980.0,109970.0,0.03791]
[1759067779490,8.55276948,109980.0,109970.0,0.03791]
[1759067779830,8.86744948,109980.0,109970.0,0.04491]
[1759067780160,8.86744948,109980.0,109970.0,0.03191]
[1759067780363,8.86744948,109980.0,109970.0,0.04191]
[1759067781013,8.86744948,109980.0,109970.0,0.02491]
[1759067781446,8.86744948,109980.0,109970.0,0.03991]
[1759067781638,8.86708948,109980.0,109970.0,0.03991]
[1759067781804,8.86720948,109980.0,109970.0,0.03291]
[1759067782131,8.86720948,109980.0,109970.0,0.02991]
[1759067782520,8.55015948,109980.0,109970.0,0.02491]
[1759067782725,8.86459948,109980.0,109970.0,0.02491]
[1759067782966,8.86459948,109980.0,109970.0,0.03191]
[1759067783145,8.36830824,109980.0,109970.0,0.03191]
[1759067783310,8.68048824,109980.0,109970.0,0.03707]
[1759067783649,8.36632824,109980.0,109970.0,0.04507]
[1759067784083,8.68040824,109980.0,109970.0,0.04507]
[1759067784282,8.68040824,109980.0,109970.0,0.03707]
[1759067784731,8.68040824,109980.0,109970.0,0.04707]
[1759067784946,8.68235824,109980.0,109970.0,0.04707]
[1759067785160,8.86420948,109980.0,109970.0,0.04707]
[1759067785379,8.86669948,109980.0,109970.0,0.04191]
[1759067785799,8.95541095,109980.0,109970.0,0.04191]
[1759067786020,8.86657948,109980.0,109970.0,0.04191]
[1759067786239,8.86657948,109980.0,109970.0,0.03491]
[1759067786420,8.55277948,109980.0,109970.0,0.02491]
[1759067786627,8.86657948,109980.0,109970.0,0.02991]
[1759067786825,8.55277948,109980.0,109970.0,0.03791]
[1759067786987,8.86649948,109980.0,109970.0,0.03791]
[1759067787614,8.85223057,109980.0,109970.0,0.03791]
[1759067788211,8.53851057,109980.0,109970.0,0.03791]
[1759067788615,8.85183057,109980.0,109970.0,0.03791]
[1759067789020,8.8681368,109980.0,109970.0,0.03791]
[1759067789251,8.8982887,109980.0,109970.0,0.03791]
[1759067789459,8.88198247,109980.0,109970.0,0.03791]
[1759067790293,8.56866247,109980.0,109970.0,0.02991]
[1759067790559,8.9907729,109980.0,109970.0,0.02991]
[1759067790806,8.9907729,109980.0,109970.0,0.03291]
[1759067791416,8.5829329,109980.0,109970.0,0.03291]
[1759067791618,8.8958129,109980.0,109970.0,0.03291]
[1759067792025,8.8967729,109980.0,109970.0,0.03291]
[1759067793472,8.5829329,109980.0,109970.0,0.03291]
[1759067793685,8.864131,109980.0,109970.0,0.03291]
[1759067794265,8.864131,109980.0,109970.0,0.02791]
[1759067794633,8.866621,109980.0,109970.0,0.02791]
[1759067794951,8.866621,109980.0,109970.0,0.02491]
[1759067795119,8.866621,109980.0,109970.0,0.03191]
[1759067795686,8.866621,109980.0,109970.0,0.03991]
[1759067796097,8.02632976,109980.0,109970.0,0.03707]
[1759067796279,8.34244976,109980.0,109970.0,0.03707]
[1759067796525,8.864301,109980.0,109970.0,0.04507]
[1759067796706,8.866281,109980.0,109970.0,0.03496]
[1759067797010,8.866281,109980.0,109970.0,0.03996]
[1759067797214,8.868891,109980.0,109970.0,0.02991]
[1759067797520,8.868891,109980.0,109970.0,0.03791]
[1759067797715,8.868891,109980.0,109970.0,0.04691]
[1759067798140,8.77311999,109980.0,109970.0,0.03791]
[1759067798354,8.68491325,109980.0,109970.0,0.03791]
[1759067798771,8.68491325,109980.0,109970.0,0.04491]
[1759067798976,8.68491325,109980.0,109970.0,0.03191]
[1759067799311,8.68491325,109980.0,109970.0,0.04191]
[1759067799929,8.68491325,109980.0,109970.0,0.03191]
[1759067800395,8.68491325,109980.0,109970.0,0.03991]
[1759067800600,8.68491325,109980.0,109970.0,0.03291]
[1759067801106,8.68491325,109980.0,109970.0,0.03791]
[1759067802156,8.36879325,109980.0,109970.0,0.03996]
[1759067802381,8.36420325,109980.0,109970.0,0.04307]
[1759067803109,8.68276325,109980.0,109970.0,0.04307]
[1759067803320,8.68276325,109980.0,109970.0,0.03507]
[1759067803535,8.68276325,109980.0,109970.0,0.04507]
[1759067805179,8.68474325,109980.0,109970.0,0.04196]
[1759067805381,8.68474325,109980.0,109970.0,0.03991]
[1759067806274,8.68474325,109980.0,109970.0,0.03491]
[1759067806949,8.36618325,109980.0,109970.0,0.03491]
[1759067807192,8.70312788,109980.0,109970.0,0.03491]
[1759067807393,8.68667325,109980.0,109970.0,0.03491]
[1759067807815,8.68667325,109980.0,109970.0,0.04191]
[1759067808026,8.68667325,109980.0,109970.0,0.03491]
[1759067808248,8.68667325,109980.0,109970.0,0.02491]
[1759067808654,8.68667325,109980.0,109970.0,0.03291]
[1759067809075,8.68667325,109980.0,109970.0,0.02491]
[1759067809255,8.68667325,109980.0,109970.0,0.02991]
[1759067810013,8.68667325,109980.0,109970.0,0.03491]
[1759067810430,8.68667325,109980.0,109970.0,0.02991]
[1759067810844,8.68667325,109980.0,109970.0,0.03291]
[1759067811051,8.67240282,109980.0,109970.0,0.03291]
[1759067813336,8.70255472,109980.0,109970.0,0.03291]
[1759067813690,8.71682477,109980.0,109970.0,0.03291]
[1759067814544,8.71502477,109980.0,109970.0,0.03291]
[1759067816201,8.71482477,109980.0,109970.0,0.03291]
[1759067816415,8.80962477,109980.0,109970.0,0.03291]
[1759067817832,8.79535472,109980.0,109970.0,0.03291]
[1759067818264,8.88406619,109980.0,109970.0,0.03291]
[1759067818840,8.78866619,109980.0,109970.0,0.03291]
[1759067819079,8.88346619,109980.0,109970.0,0.03291]
[1759067820871,8.89773663,109980.0,109970.0,0.03291]
[1759067821113,8.94773663,109980.0,109970.0,0.03291]
[1759067822605,8.85245663,109980.0,109970.0,0.03291]
[1759067822811,8.94725663,109980.0,109970.0,0.03291]
[1759067823124,8.53765663,109980.0,109970.0,0.03291]
[1759067823326,8.85830516,109980.0,109970.0,0.03291]
[1759067823546,8.45900326,109980.0,109970.0,0.03489]
[1759067823750,8.36420326,109980.0,109970.0,0.03787]
[1759067824013,8.80540516,109980.0,109970.0,0.03489]
[1759067824551,8.39632516,109980.0,109970.0,0.03489]
[1759067824740,8.80544516,109980.0,109970.0,0.03489]
[1759067825049,8.80544516,109980.0,109970.0,0.03291]
[1759067826277,8.39632516,109980.0,109970.0,0.03291]
[1759067826670,8.80504516,109980.0,109970.0,0.03291]
[1759067827007,9.25384516,109980.0,109970.0,0.03291]
[1759067827617,9.23957472,109980.0,109970.0,0.03291]
[1759067828244,9.33090619,109980.0,109970.0,0.03291]
[1759067830304,8.83085472,109980.0,109970.0,0.03291]
[1759067830511,9.23897472,109980.0,109970.0,0.03291]
[1759067830741,9.07000678,109980.0,109970.0,0.03291]
[1759067834618,8.97452678,109980.0,109970.0,0.03291]
[1759067834846,9.07194678,109980.0,109970.0,0.03291]
[1759067835074,9.16065825,109980.0,109970.0,0.03291]
[1759067835315,9.07194678,109980.0,109970.0,0.03291]
[1759067836568,9.06932678,109980.0,109970.0,0.03291]
[1759067837579,9.06816678,109980.0,109970.0,0.03291]
[1759067837925,9.05389572,109980.0,109970.0,0.03291]
[1759067838344,8.64761572,109980.0,109970.0,0.03822]
[1759067838545,9.05389572,109980.0,109970.0,0.03822]
[1759067840745,9.06816705,109980.0,109970.0,0.03505]
[1759067841387,8.97300705,109980.0,109970.0,0.03505]
[1759067841751,9.06760705,109980.0,109970.0,0.03505]
[1759067842583,9.06760705,109980.0,109970.0,0.03824]
[1759067842988,8.97272705,109980.0,109970.0,0.03824]
[1759067843309,9.06555705,109980.0,109970.0,0.03824]
[1759067844188,8.87318639,109980.0,109970.0,0.03824]
[1759067844686,8.87516639,109980.0,109970.0,0.03824]
[1759067846458,8.87516639,109980.0,109970.0,0.03505]
[1759067849292,8.96387786,109980.0,109970.0,0.03505]
[1759067849508,8.87516639,109980.0,109970.0,0.03505]
[1759067850615,8.87516639,109980.0,109970.0,0.03291]
[1759067850846,8.87516639,109980.0,109970.0,0.03504]
[1759067853681,8.46952639,109980.0,109970.0,0.03504]
[1759067853882,8.87332639,109980.0,109970.0,0.03504]
[1759067854114,8.87292639,109980.0,109970.0,0.03504]
[1759067855459,8.46952639,109980.0,109970.0,0.03504]
[1759067855730,8.87284639,109980.0,109970.0,0.03823]
[1759067855924,8.87284639,109980.0,109970.0,0.03504]
[1759067857509,8.95543198,109980.0,109970.0,0.03504]
[1759067860271,8.94116065,109980.0,109970.0,0.03504]
[1759067861157,8.85857506,109980.0,109970.0,0.03504]
[1759067863045,8.87284627,109980.0,109970.0,0.03504]
[1759067865783,8.69975529,109980.0,109970.0,0.03504]
[1759067866205,8.69975529,109980.0,109970.0,0.03291]
[1759067866816,8.25095529,109980.0,109970.0,0.03291]
[1759067867338,8.33966676,109980.0,109970.0,0.03291]
[1759067867535,8.25095529,109980.0,109970.0,0.03291]
[1759067869371,8.296951,109980.0,109970.0,2e-08]
[1759067869872,8.28267979,109980.0,109970.0,2e-08]
[1759067871300,0.18191206,109950.0,109930.0,0.16456609]
[1759067871536,0.52191206,109950.0,109940.0,0.00209]
[1759067871751,8.54637206,109950.0,109940.0,0.00209]
[1759067872748,8.62895358,109950.0,109940.0,0.00209]
[1759067873241,8.62895358,109950.0,109940.0,0.01234]
[1759067873460,8.62895358,109950.0,109940.0,0.04553]
[1759067882017,8.63110358,109950.0,109940.0,0.04553]
[1759067882165,8.93474358,109950.0,109940.0,0.04553]
[1759067886281,8.63110358,109950.0,109940.0,0.04553]
[1759067886718,8.43071949,109950.0,109940.0,0.04553]
[1759067886930,8.61263155,109950.0,109940.0,0.04553]
[1759067890532,8.61263155,109950.0,109940.0,0.04228]
[1759067890963,8.61556155,109950.0,109940.0,0.04228]
[1759067891371,8.91780155,109950.0,109940.0,0.04228]
[1759067892525,8.94517632,109950.0,109940.0,0.06965477]
[1759067894752,8.94224632,109950.0,109940.0,0.06965477]
[1759067896268,8.63999512,109950.0,109940.0,0.06965477]
[1759067896468,8.94151512,109950.0,109940.0,0.07279477]
[1759067898324,8.63999512,109950.0,109940.0,0.07279477]
[1759067898449,8.94135512,109950.0,109940.0,0.07279477]
[1759067900622,8.63999512,109950.0,109940.0,0.07279477]
[1759067900753,8.93860512,109950.0,109940.0,0.07279477]
[1759067900986,8.61707715,109950.0,109940.0,0.07279477]
[1759067901619,8.61895715,109950.0,109940.0,0.07279477]
[1759067902111,8.61895715,109950.0,109940.0,0.06965477]
[1759067904985,8.31839715,109950.0,109940.0,0.06965477]
[1759067905192,8.61867715,109950.0,109940.0,0.06965477]
[1759067906749,8.61867715,109950.0,109940.0,0.07262477]
[1759067906961,8.61867715,109950.0,109940.0,0.06965477]
[1759067907864,8.61811715,109950.0,109940.0,0.06965477]
[1759067907993,8.31839715,109950.0,109940.0,0.06965477]
[1759067908360,8.61807715,109950.0,109940.0,0.06965477]
[1759067908575,8.61807715,109950.0,109940.0,0.04228]
[1759067911831,8.95807715,109950.0,109940.0,0.04228]
[1759067913798,8.96129715,109950.0,109940.0,0.04019]
[1759067914850,8.66161715,109950.0,109940.0,0.06756477]
[1759067915095,8.96045715,109950.0,109940.0,0.06756477]
[1759067917541,8.47971629,109950.0,109940.0,0.06967477]
[1759067917768,8.96021715,109950.0,109940.0,0.06756477]
[1759067917986,8.96021715,109950.0,109940.0,0.04019]
[1759067918185,8.96021715,109950.0,109940.0,0.0423]
[1759067919270,8.96021715,109950.0,109940.0,0.04019]
[1759067920214,8.96021715,109950.0,109940.0,0.06756477]
[1759067920859,8.96021715,109950.0,109940.0,0.04019]
[1759067921249,8.96021715,109950.0,109940.0,0.06756477]
[1759067921380,8.66161715,109950.0,109940.0,0.06756477]
[1759067921585,8.95977715,109950.0,109940.0,0.06756477]
[1759067925402,8.95977715,109950.0,109940.0,0.04019]
[1759067933520,8.66161715,109950.0,109940.0,0.04019]
[1759067933730,8.95857715,109950.0,109930.0,0.0253896]
[1759067933941,0.04579881,109910.0,109900.0,6.10777141]
[1759067934161,0.04579881,109910.0,109900.0,2.30108848]
[1759067934392,0.0232057,109910.0,109900.0,1.55122186]
[1759067934607,0.0232057,109910.0,109900.0,1.91262996]
[1759067935206,0.0232057,109910.0,109900.0,1.91267637]
[1759067935900,0.0232057,109910.0,109900.0,1.91580637]
[1759067936085,0.18193449,109930.0,109900.0,1.91580637]
[1759067936230,8.0,109920.0,109910.0,0.02693]
[1759067936441,8.0,109920.0,109910.0,0.0289]
[1759067936634,8.0,109920.0,109910.0,0.05627637]
[1759067938219,8.02311,109920.0,109910.0,0.05627637]
[1759067938452,0.02311,109920.0,109910.0,0.05627637]
[1759067938870,0.02311,109920.0,109910.0,0.06327637]
[1759067939074,0.02311,109920.0,109910.0,0.06827637]
[1759067942395,0.03870468,109930.0,109910.0,0.06827637]
[1759067942525,8.5,109920.0,109910.0,0.06827637]
[1759067942897,8.0,109920.0,109910.0,0.33678]
[1759067943150,8.0,109920.0,109910.0,0.36415637]
[1759067943333,8.0,109920.0,109910.0,0.35715637]
[1759067943754,8.0,109920.0,109910.0,0.36115637]
[1759067944381,8.0,109930.0,109910.0,0.36115637]
[1759067944612,8.00318,109930.0,109910.0,0.33735637]
[1759067944832,8.0,109920.0,109910.0,0.33378]
[1759067945262,8.0,109920.0,109910.0,0.32978]
[1759067945469,8.0,109920.0,109910.0,0.35715637]
[1759067945671,8.0,109920.0,109910.0,0.36415637]
[1759067946265,8.0,109920.0,109910.0,0.35915637]
[1759067946813,8.0,109920.0,109910.0,0.31872514]
[1759067947065,8.04509184,109920.0,109910.0,0.29323576]
[1759067947268,8.04509184,109920.0,109910.0,0.02790637]
[1759067947269,0.36999966,109920.0,109910.0,0.02790637]
[1759067947690,0.36524,109920.0,109910.0,0.02790637]
[1759067948086,0.36524,109920.0,109910.0,0.03390637]
[1759067948306,0.02524,109920.0,109910.0,0.03390637]
[1759067948664,0.05261637,109920.0,109910.0,0.03390637]
[1759067949076,0.05261637,109920.0,109910.0,0.05770637]
[1759067949271,0.05579637,109920.0,109910.0,0.03033]
[1759067949717,0.05579637,109920.0,109910.0,0.0298]
[1759067949895,0.05579637,109920.0,109910.0,0.02888785]
[1759067950285,0.070071,109920.0,109910.0,0.02888785]
[1759067953134,0.410071,109920.0,109910.0,0.02888785]
[1759067960955,0.39579637,109920.0,109910.0,0.02888785]
[1759067969606,0.00211,109920.0,109910.0,0.02888785]
[1759067970267,0.02948697,109920.0,109910.0,0.02888785]
[1759067971536,0.03259697,109920.0,109910.0,0.02888785]
[1759067973526,0.03259697,109920.0,109910.0,0.03102785]
[1759067974939,0.02948697,109920.0,109910.0,0.03102785]
[1759067975974,0.02948697,109920.0,109910.0,0.02953614]
[1759067976396,0.03259697,109920.0,109910.0,0.02953614]
[1759067981562,0.02948697,109920.0,109910.0,0.02953614]
[1759067988815,0.227097,109930.0,109910.0,0.02953614]
[1759067989052,0.25447404,109930.0,109910.0,0.03270614]
[1759067989324,0.00211,109920.0,109910.0,0.03270614]
[1759067989665,0.25447404,109930.0,109910.0,0.03270614]
[1759067990096,0.25547404,109930.0,109910.0,0.05648704]
[1759067990877,0.25761404,109930.0,109910.0,0.05648704]
[1759067992250,0.27188828,109930.0,109910.0,0.05648704]
[1759067992684,0.27188828,109930.0,109910.0,0.05848704]
[1759067992883,0.04479128,109930.0,109910.0,0.05848704]
[1759067993103,0.33979128,109930.0,109910.0,0.05848704]
[1759067994987,0.04479128,109930.0,109910.0,0.05848704]
[1759067995211,0.33975128,109930.0,109910.0,0.05848704]
[1759067998148,0.33971128,109930.0,109910.0,0.05848704]
[1759067998595,0.32543704,109930.0,109910.0,0.05848704]
[1759068000354,0.03051704,109930.0,109910.0,0.05848704]
[1759068000567,0.32543704,109930.0,109910.0,0.05848704]
[1759068000786,0.03051704,109930.0,109910.0,0.05848704]
[1759068001024,0.32543704,109930.0,109910.0,0.05848704]
[1759068001562,0.33971128,109930.0,109910.0,0.05848704]
[1759068003308,0.52164545,109930.0,109910.0,0.05848704]
[1759068003730,0.00198,109920.0,109910.0,0.05848704]
[1759068005078,0.00198,109920.0,109910.0,0.06048704]
[1759068005702,0.52064545,109930.0,109910.0,0.06048704]
[1759068006557,0.52064545,109930.0,109910.0,0.05848704]
[1759068006990,0.33934527,109930.0,109910.0,0.05648704]
[1759068007139,0.33934527,109930.0,109910.0,0.02911]
[1759068007343,0.33934527,109930.0,109910.0,0.03211]
[1759068007544,0.33934527,109930.0,109920.0,0.02737704]
[1759068007968,0.34034527,109930.0,109920.0,0.05159704]
[1759068008420,0.1574111,109930.0,109920.0,0.05159704]
[1759068008967,0.1584111,109930.0,109920.0,0.05159704]
[1759068011001,0.1584111,109930.0,109920.0,0.05259704]
[1759068011775,0.01527424,109930.0,109920.0,0.05259704]
[1759068011997,0.31007424,109930.0,109920.0,0.05259704]
[1759068016253,0.33745129,109930.0,109920.0,0.05259704]
[1759068020036,0.04265129,109930.0,109920.0,0.05259704]
[1759068020238,0.33737129,109930.0,109920.0,0.05259704]
[1759068020856,0.33737129,109930.0,109920.0,0.05457704]
[1759068021069,0.67733129,109930.0,109920.0,0.05259704]
[1759068021250,0.66305705,109930.0,109920.0,0.05259704]
[1759068021867,0.63568,109930.0,109920.0,0.05259704]
[1759068025342,0.64995401,109930.0,109920.0,0.05457704]
[1759068026376,0.35527401,109930.0,109920.0,0.05457704]
[1759068026578,0.64991401,109930.0,109920.0,0.05457704]
[1759068028010,0.35527401,109930.0,109920.0,0.05457704]
[1759068028222,0.64991401,109930.0,109920.0,0.05457704]
[1759068028437,0.64987401,109930.0,109920.0,0.05457704]
[1759068029123,0.341,109930.0,109920.0,0.05457704]
[1759068029333,0.6356,109930.0,109920.0,0.05457704]
[1759068029955,0.6356,109930.0,109920.0,0.05776704]
[1759068030166,0.6356,109930.0,109920.0,0.05457704]
[1759068031366,0.66297704,109930.0,109920.0,0.05457704]
[1759068032958,0.66297704,109930.0,109920.0,0.05259704]
[1759068033566,0.36837704,109930.0,109920.0,0.05259704]
[1759068033770,0.66293704,109930.0,109920.0,0.05457704]
[1759068035850,0.63556,109930.0,109920.0,0.05457704]
[1759068038350,0.63556,109930.0,109920.0,0.05259704]
[1759068040641,0.643187,109930.0,109920.0,0.05259704]
[1759068047255,0.302187,109930.0,109920.0,0.05259704]
[1759068051261,0.07268911,109930.0,109920.0,0.05259704]
[1759068054057,0.0869628,109930.0,109920.0,0.05259704]
[1759068055209,0.0869628,109930.0,109920.0,0.05463704]
[1759068060220,0.301747,109930.0,109920.0,0.05463704]
[1759068060407,0.301747,109930.0,109920.0,0.05765704]
[1759068062207,0.301707,109930.0,109920.0,0.05765704]
[1759068063314,0.31598035,109930.0,109920.0,0.05765704]
[1759068063978,0.31594035,109930.0,109920.0,0.05765704]
[1759068064882,0.31590035,109930.0,109920.0,0.05765704]
[1759068066065,0.31590035,109930.0,109920.0,0.05463704]
[1759068067650,0.301627,109930.0,109920.0,0.05463704]
[1759068070572,0.31590034,109930.0,109920.0,0.05463704]
[1759068071326,0.31590034,109930.0,109920.0,0.05756704]
[1759068081879,0.49783429,109930.0,109920.0,0.05259704]
[1759068082750,0.49783429,109930.0,109920.0,0.02522]
[1759068082969,0.52521309,109930.0,109920.0,0.02522]